[Event "Titled Tuesday Blitz August 1 Early 2023"]
[White "Estrada Nieto, Julian"]
[Black "Zemlyanskii, Ivan"]
[WhiteFideId "5101018"]
[BlackFideId "24249971"]
[WhiteElo "2508"]
[BlackElo "2928"]
[Result "0-1"]
[Round "3"]
[TimeControl "180+1"]
[Date "2023.08.01"]
[WhiteClock "0:00:01"]
[BlackClock "0:00:16"]
[Board "79"]

1. e4 {[%clk 0:03:00]}  c5 {[%clk 0:02:59]} 2. Nf3 {[%clk 0:03:01]}  e6 {[%clk 0:02:59]} 3. c3 {[%clk 0:03:00]}  d5 {[%clk 0:02:58]} 4. exd5 {[%clk 0:03:00]}  exd5 {[%clk 0:02:53]} 5. d4 {[%clk 0:03:01]}  Nc6 {[%clk 0:02:52]} 6. Bb5 {[%clk 0:03:01]}  Nf6 {[%clk 0:02:53]} 7. O-O {[%clk 0:03:01]}  Bd6 {[%clk 0:02:53]} 8. dxc5 {[%clk 0:03:02]}  Bxc5 {[%clk 0:02:54]} 9. Nbd2 {[%clk 0:03:02]}  O-O {[%clk 0:02:54]} 10. Nb3 {[%clk 0:03:01]}  Bb6 {[%clk 0:02:54]} 11. Re1 {[%clk 0:02:59]}  Bg4 {[%clk 0:02:49]} 12. Be3 {[%clk 0:02:58]}  Ne4 {[%clk 0:02:41]} 13. h3 {[%clk 0:02:30]}  Bh5 {[%clk 0:02:39]} 14. Bxc6 {[%clk 0:01:54]}  bxc6 {[%clk 0:02:38]} 15. Nbd4 {[%clk 0:01:52]}  Qf6 {[%clk 0:02:34]} 16. g4 {[%clk 0:01:29]}  Bg6 {[%clk 0:02:32]} 17. Nd2 {[%clk 0:01:13]}  c5 {[%clk 0:02:09]} 18. N4b3 {[%clk 0:01:13]}  Rac8 {[%clk 0:01:54]} 19. Nxe4 {[%clk 0:01:09]}  Bxe4 {[%clk 0:01:55]} 20. Nd2 {[%clk 0:01:07]}  Bg6 {[%clk 0:01:52]} 21. Qf3 {[%clk 0:01:03]}  Qc6 {[%clk 0:01:27]} 22. Bf4 {[%clk 0:00:56]}  h6 {[%clk 0:01:24]} 23. Rad1 {[%clk 0:00:55]}  Rfe8 {[%clk 0:01:16]} 24. Qg3 {[%clk 0:00:40]}  Qa4 {[%clk 0:01:12]} 25. a3 {[%clk 0:00:37]}  Qc2 {[%clk 0:01:06]} 26. Nf3 {[%clk 0:00:20]}  Qxb2 {[%clk 0:00:59]} 27. Ne5 {[%clk 0:00:18]}  Be4 {[%clk 0:00:57]} 28. f3 {[%clk 0:00:11]}  Bc2 {[%clk 0:00:38]} 29. Rc1 {[%clk 0:00:10]}  d4 {[%clk 0:00:28]} 30. Nc4 {[%clk 0:00:06]}  Qxc3 {[%clk 0:00:26]} 31. Nxb6 {[%clk 0:00:06]}  axb6 {[%clk 0:00:24]} 32. Be5 {[%clk 0:00:06]}  f6 {[%clk 0:00:23]} 33. Re2 {[%clk 0:00:04]}  Rxe5 {[%clk 0:00:18]} 34. Rexc2 {[%clk 0:00:03]}  Qe3+ {[%clk 0:00:18]} 35. Kg2 {[%clk 0:00:03]}  d3 {[%clk 0:00:18]} 36. Rf2 {[%clk 0:00:03]}  Qxc1 {[%clk 0:00:17]} 37. f4 {[%clk 0:00:02]}  Re3 {[%clk 0:00:16]} 38. Qh4 {[%clk 0:00:02]}  d2 {[%clk 0:00:16]} 39. g5 {[%clk 0:00:01]}  d1=Q {[%clk 0:00:16]} 40. gxh6 {[%clk 0:00:01]}  Qh1# {[%clk 0:00:16]} 0-1


[Site "https://www.chess.com"]

[Event "Titled Tuesday Blitz August 1 Early 2023"]
[White "Lehtosaari, Mauri"]
[Black "Perez Ponsa, Federico"]
[WhiteFideId "501999"]
[BlackFideId "117927"]
[WhiteElo "2505"]
[BlackElo "2894"]
[Result "0-1"]
[Round "3"]
[TimeControl "180+1"]
[Date "2023.08.01"]
[WhiteClock "0:00:06"]
[BlackClock "0:00:41"]
[Board "81"]

1. d4 {[%clk 0:03:00]}  Nf6 {[%clk 0:02:23]} 2. Nf3 {[%clk 0:02:59]}  g6 {[%clk 0:02:24]} 3. Bg5 {[%clk 0:02:59]}  Bg7 {[%clk 0:02:25]} 4. e3 {[%clk 0:02:59]}  O-O {[%clk 0:02:25]} 5. Bc4 {[%clk 0:03:00]}  d6 {[%clk 0:02:26]} 6. O-O {[%clk 0:03:00]}  Nc6 {[%clk 0:02:26]} 7. c3 {[%clk 0:02:59]}  Qe8 {[%clk 0:02:27]} 8. a4 {[%clk 0:02:58]}  h6 {[%clk 0:02:26]} 9. Bxf6 {[%clk 0:02:58]}  Bxf6 {[%clk 0:02:25]} 10. Nbd2 {[%clk 0:02:58]}  Bg7 {[%clk 0:02:24]} 11. Qc2 {[%clk 0:02:57]}  Kh7 {[%clk 0:02:20]} 12. Rfe1 {[%clk 0:02:53]}  e5 {[%clk 0:02:10]} 13. dxe5 {[%clk 0:02:38]}  Nxe5 {[%clk 0:02:06]} 14. Nxe5 {[%clk 0:02:37]}  Qxe5 {[%clk 0:02:07]} 15. Nf3 {[%clk 0:02:33]}  Qe7 {[%clk 0:01:57]} 16. h3 {[%clk 0:02:27]}  Bf5 {[%clk 0:01:39]} 17. Bd3 {[%clk 0:02:20]}  Be6 {[%clk 0:01:39]} 18. Nd4 {[%clk 0:02:16]}  Bd7 {[%clk 0:01:38]} 19. a5 {[%clk 0:02:10]}  a6 {[%clk 0:01:36]} 20. Qb3 {[%clk 0:02:08]}  c5 {[%clk 0:01:36]} 21. Nf3 {[%clk 0:02:05]}  Bc6 {[%clk 0:01:35]} 22. Be2 {[%clk 0:02:05]}  f5 {[%clk 0:01:33]} 23. Rad1 {[%clk 0:02:02]}  Rad8 {[%clk 0:01:33]} 24. Nd2 {[%clk 0:01:56]}  d5 {[%clk 0:01:28]} 25. Bf3 {[%clk 0:01:55]}  g5 {[%clk 0:01:27]} 26. Nf1 {[%clk 0:01:47]}  Qe6 {[%clk 0:01:27]} 27. Ng3 {[%clk 0:01:42]}  g4 {[%clk 0:01:22]} 28. hxg4 {[%clk 0:01:39]}  fxg4 {[%clk 0:01:23]} 29. Be2 {[%clk 0:01:21]}  Be5 {[%clk 0:01:23]} 30. Nf1 {[%clk 0:01:02]}  h5 {[%clk 0:01:18]} 31. Nd2 {[%clk 0:00:43]}  Kg7 {[%clk 0:01:11]} 32. f4 {[%clk 0:00:42]}  Bf6 {[%clk 0:00:55]} 33. Bf1 {[%clk 0:00:40]}  Bh4 {[%clk 0:00:52]} 34. Re2 {[%clk 0:00:40]}  Bg3 {[%clk 0:00:50]} 35. Ree1 {[%clk 0:00:18]}  Qf6 {[%clk 0:00:41]} 36. Be2 {[%clk 0:00:06]}  Qh4 {[%clk 0:00:41]} 0-1


[Site "https://www.chess.com"]

[Event "Titled Tuesday Blitz August 1 Early 2023"]
[White "Erzhanov, Arman"]
[Black "Dau Khuong Duy"]
[WhiteFideId "4138821"]
[BlackFideId "12424722"]
[WhiteElo "2503"]
[BlackElo "2878"]
[Result "0-1"]
[Round "3"]
[TimeControl "180+1"]
[Date "2023.08.01"]
[WhiteClock "0:00:10"]
[BlackClock "0:00:21"]
[Board "82"]

1. e4 {[%clk 0:03:00]}  c5 {[%clk 0:02:58]} 2. Nf3 {[%clk 0:03:00]}  d6 {[%clk 0:02:58]} 3. d4 {[%clk 0:02:58]}  cxd4 {[%clk 0:02:59]} 4. Qxd4 {[%clk 0:02:59]}  Nc6 {[%clk 0:02:59]} 5. Qe3 {[%clk 0:02:57]}  Nf6 {[%clk 0:02:59]} 6. h3 {[%clk 0:02:54]}  e6 {[%clk 0:02:59]} 7. Be2 {[%clk 0:02:54]}  Be7 {[%clk 0:03:00]} 8. O-O {[%clk 0:02:54]}  O-O {[%clk 0:03:00]} 9. c4 {[%clk 0:02:55]}  d5 {[%clk 0:02:55]} 10. exd5 {[%clk 0:02:50]}  exd5 {[%clk 0:02:55]} 11. Rd1 {[%clk 0:02:51]}  Re8 {[%clk 0:02:48]} 12. cxd5 {[%clk 0:02:46]}  Nxd5 {[%clk 0:02:48]} 13. Qb3 {[%clk 0:02:42]}  Be6 {[%clk 0:02:46]} 14. Qxb7 {[%clk 0:02:38]}  Qb6 {[%clk 0:02:10]} 15. Qxb6 {[%clk 0:02:35]}  axb6 {[%clk 0:02:11]} 16. Bb5 {[%clk 0:02:15]}  Rec8 {[%clk 0:02:08]} 17. Bxc6 {[%clk 0:02:01]}  Rxc6 {[%clk 0:02:07]} 18. Nd4 {[%clk 0:02:01]}  Rc4 {[%clk 0:02:05]} 19. Be3 {[%clk 0:01:44]}  Bf6 {[%clk 0:01:44]} 20. Na3 {[%clk 0:01:38]}  Rb4 {[%clk 0:01:42]} 21. Rd2 {[%clk 0:01:27]}  h5 {[%clk 0:01:28]} 22. Rad1 {[%clk 0:01:24]}  Nxe3 {[%clk 0:01:27]} 23. fxe3 {[%clk 0:01:24]}  Bxa2 {[%clk 0:01:27]} 24. Nab5 {[%clk 0:01:18]}  Bc4 {[%clk 0:01:05]} 25. Nd6 {[%clk 0:01:09]}  Bb3 {[%clk 0:00:34]} 26. Rc1 {[%clk 0:01:06]}  Bg5 {[%clk 0:00:30]} 27. Kf2 {[%clk 0:01:06]}  g6 {[%clk 0:00:25]} 28. Rc3 {[%clk 0:00:46]}  Ba4 {[%clk 0:00:19]} 29. Nf3 {[%clk 0:00:43]}  Bf6 {[%clk 0:00:18]} 30. Nd4 {[%clk 0:00:43]}  Bd7 {[%clk 0:00:15]} 31. Ne4 {[%clk 0:00:43]}  Bg7 {[%clk 0:00:14]} 32. Rc7 {[%clk 0:00:40]}  Be8 {[%clk 0:00:14]} 33. Nd6 {[%clk 0:00:40]}  Be5 {[%clk 0:00:13]} 34. Nxe8 {[%clk 0:00:36]}  Rxe8 {[%clk 0:00:14]} 35. Rc6 {[%clk 0:00:35]}  Kg7 {[%clk 0:00:14]} 36. Rcc2 {[%clk 0:00:26]}  Bf6 {[%clk 0:00:15]} 37. Nc6 {[%clk 0:00:26]}  Rbe4 {[%clk 0:00:15]} 38. Re2 {[%clk 0:00:27]}  Bh4+ {[%clk 0:00:14]} 39. g3 {[%clk 0:00:26]}  Bf6 {[%clk 0:00:14]} 40. h4 {[%clk 0:00:25]}  g5 {[%clk 0:00:14]} 41. hxg5 {[%clk 0:00:25]}  Bxg5 {[%clk 0:00:15]} 42. Nd4 {[%clk 0:00:25]}  f6 {[%clk 0:00:13]} 43. Rc3 {[%clk 0:00:23]}  Kg6 {[%clk 0:00:12]} 44. Kf3 {[%clk 0:00:22]}  R4e5 {[%clk 0:00:11]} 45. Nc6 {[%clk 0:00:22]}  Rd5 {[%clk 0:00:10]} 46. Nb4 {[%clk 0:00:21]}  Rd1 {[%clk 0:00:09]} 47. Nd3 {[%clk 0:00:21]}  Rf1+ {[%clk 0:00:07]} 48. Kg2 {[%clk 0:00:21]}  Rb1 {[%clk 0:00:08]} 49. Kf3 {[%clk 0:00:20]}  Rd8 {[%clk 0:00:08]} 50. Nf4+ {[%clk 0:00:21]}  Bxf4 {[%clk 0:00:09]} 51. exf4 {[%clk 0:00:21]}  Rf1+ {[%clk 0:00:09]} 52. Kg2 {[%clk 0:00:21]}  Rfd1 {[%clk 0:00:10]} 53. Rb3 {[%clk 0:00:21]}  R8d6 {[%clk 0:00:10]} 54. Rb5 {[%clk 0:00:20]}  R1d4 {[%clk 0:00:09]} 55. Kf2 {[%clk 0:00:19]}  Rc4 {[%clk 0:00:09]} 56. Kg2 {[%clk 0:00:18]}  h4 {[%clk 0:00:09]} 57. f5+ {[%clk 0:00:17]}  Kg5 {[%clk 0:00:10]} 58. gxh4+ {[%clk 0:00:17]}  Kxh4 {[%clk 0:00:09]} 59. Kf2 {[%clk 0:00:16]}  Kg5 {[%clk 0:00:09]} 60. Ke3 {[%clk 0:00:16]}  Rc5 {[%clk 0:00:08]} 61. Rxc5 {[%clk 0:00:15]}  bxc5 {[%clk 0:00:09]} 62. Rf2 {[%clk 0:00:15]}  Rd5 {[%clk 0:00:09]} 63. Ke4 {[%clk 0:00:15]}  Re5+ {[%clk 0:00:10]} 64. Kd3 {[%clk 0:00:15]}  Rxf5 {[%clk 0:00:10]} 65. Rg2+ {[%clk 0:00:15]}  Kf4 {[%clk 0:00:11]} 66. Kc4 {[%clk 0:00:15]}  Re5 {[%clk 0:00:11]} 67. Rf2+ {[%clk 0:00:14]}  Kg5 {[%clk 0:00:11]} 68. b3 {[%clk 0:00:14]}  f5 {[%clk 0:00:11]} 69. Rg2+ {[%clk 0:00:12]}  Kh4 {[%clk 0:00:12]} 70. Rf2 {[%clk 0:00:11]}  Kg4 {[%clk 0:00:12]} 71. Rg2+ {[%clk 0:00:10]}  Kf3 {[%clk 0:00:13]} 72. Rg8 {[%clk 0:00:10]}  f4 {[%clk 0:00:13]} 73. Rc8 {[%clk 0:00:08]}  Ke3 {[%clk 0:00:13]} 74. Rxc5 {[%clk 0:00:06]}  Rxc5+ {[%clk 0:00:14]} 75. Kxc5 {[%clk 0:00:07]}  f3 {[%clk 0:00:15]} 76. b4 {[%clk 0:00:08]}  f2 {[%clk 0:00:16]} 77. b5 {[%clk 0:00:09]}  f1=Q {[%clk 0:00:17]} 78. b6 {[%clk 0:00:10]}  Qf8+ {[%clk 0:00:18]} 79. Kc6 {[%clk 0:00:10]}  Qb8 {[%clk 0:00:18]} 80. b7 {[%clk 0:00:09]}  Kd4 {[%clk 0:00:19]} 81. Kb6 {[%clk 0:00:10]}  Kd5 {[%clk 0:00:20]} 82. Ka6 {[%clk 0:00:10]}  Kc5 {[%clk 0:00:20]} 83. Ka5 {[%clk 0:00:10]}  Qa7# {[%clk 0:00:21]} 0-1


[Site "https://www.chess.com"]

[Event "Titled Tuesday Blitz August 1 Early 2023"]
[White "Moroni, Luca Jr"]
[Black "Kiremitciyan, Ari"]
[WhiteFideId "865834"]
[BlackFideId "6373445"]
[WhiteElo "2844"]
[BlackElo "2495"]
[Result "1-0"]
[Round "3"]
[TimeControl "180+1"]
[Date "2023.08.01"]
[WhiteClock "0:02:04"]
[BlackClock "0:00:02"]
[Board "88"]

1. Nc3 {[%clk 0:03:00]}  d5 {[%clk 0:02:58]} 2. e4 {[%clk 0:03:00]}  dxe4 {[%clk 0:02:59]} 3. Nxe4 {[%clk 0:03:01]}  Nf6 {[%clk 0:02:59]} 4. Nxf6+ {[%clk 0:03:01]}  exf6 {[%clk 0:03:00]} 5. d4 {[%clk 0:03:01]}  Bd6 {[%clk 0:03:00]} 6. Bd3 {[%clk 0:03:01]}  O-O {[%clk 0:03:00]} 7. Ne2 {[%clk 0:03:02]}  c6 {[%clk 0:02:58]} 8. c3 {[%clk 0:03:02]}  Nd7 {[%clk 0:02:58]} 9. Qc2 {[%clk 0:03:03]}  g6 {[%clk 0:02:55]} 10. h4 {[%clk 0:03:02]}  Re8 {[%clk 0:02:49]} 11. h5 {[%clk 0:03:02]}  Nf8 {[%clk 0:02:50]} 12. hxg6 {[%clk 0:03:02]}  fxg6 {[%clk 0:02:46]} 13. Bh6 {[%clk 0:03:02]}  f5 {[%clk 0:02:17]} 14. O-O-O {[%clk 0:03:01]}  Be6 {[%clk 0:02:04]} 15. g4 {[%clk 0:03:00]}  Qa5 {[%clk 0:01:52]} 16. gxf5 {[%clk 0:02:54]}  Bxf5 {[%clk 0:01:49]} 17. Bxf5 {[%clk 0:02:49]}  Qxf5 {[%clk 0:01:50]} 18. Qxf5 {[%clk 0:02:48]}  gxf5 {[%clk 0:01:49]} 19. Bxf8 {[%clk 0:02:46]}  Bxf8 {[%clk 0:01:21]} 20. Rdg1+ {[%clk 0:02:45]}  Kh8 {[%clk 0:01:19]} 21. Nf4 {[%clk 0:02:45]}  Bg7 {[%clk 0:01:14]} 22. Rh5 {[%clk 0:02:42]}  Re4 {[%clk 0:01:08]} 23. Ng6+ {[%clk 0:02:35]}  Kg8 {[%clk 0:01:07]} 24. Nh4 {[%clk 0:02:36]}  Rg4 {[%clk 0:00:50]} 25. Re1 {[%clk 0:02:27]}  f4 {[%clk 0:00:40]} 26. Nf5 {[%clk 0:02:27]}  Rf8 {[%clk 0:00:26]} 27. Kc2 {[%clk 0:02:18]}  Rg2 {[%clk 0:00:17]} 28. Kd3 {[%clk 0:02:18]}  Kh8 {[%clk 0:00:08]} 29. Re7 {[%clk 0:02:06]}  Rg6 {[%clk 0:00:02]} 30. Rxb7 {[%clk 0:02:04]} 1-0


[Site "https://www.chess.com"]

[Event "Titled Tuesday Blitz August 1 Early 2023"]
[White "Dziththauly Ramadhan"]
[Black "Kaplan, Avi Harrison"]
[WhiteFideId "7105525"]
[BlackFideId "30934559"]
[WhiteElo "2773"]
[BlackElo "2490"]
[Result "1-0"]
[Round "3"]
[TimeControl "180+1"]
[Date "2023.08.01"]
[WhiteClock "0:01:40"]
[BlackClock "0:00:00"]
[Board "92"]

1. d4 {[%clk 0:03:00]}  Nf6 {[%clk 0:02:48]} 2. c4 {[%clk 0:02:56]}  a6 {[%clk 0:02:48]} 3. Nc3 {[%clk 0:02:55]}  b5 {[%clk 0:02:48]} 4. cxb5 {[%clk 0:02:54]}  axb5 {[%clk 0:02:49]} 5. Nxb5 {[%clk 0:02:54]}  e5 {[%clk 0:02:50]} 6. dxe5 {[%clk 0:02:52]}  Ne4 {[%clk 0:02:50]} 7. Qd4 {[%clk 0:02:44]}  Bb7 {[%clk 0:02:42]} 8. Nc3 {[%clk 0:02:41]}  Bc5 {[%clk 0:02:39]} 9. Qc4 {[%clk 0:02:33]}  d5 {[%clk 0:02:11]} 10. exd6 {[%clk 0:02:33]}  Bxf2+ {[%clk 0:01:58]} 11. Kd1 {[%clk 0:02:33]}  Qxd6+ {[%clk 0:01:58]} 12. Qd3 {[%clk 0:02:27]}  Qe6 {[%clk 0:01:31]} 13. Nh3 {[%clk 0:02:20]}  Ra6 {[%clk 0:01:13]} 14. Nxe4 {[%clk 0:02:15]}  Bxe4 {[%clk 0:01:12]} 15. Ng5 {[%clk 0:02:04]}  Bxd3 {[%clk 0:00:51]} 16. Nxe6 {[%clk 0:02:03]}  Rxe6 {[%clk 0:00:52]} 17. exd3 {[%clk 0:02:03]}  Re1+ {[%clk 0:00:53]} 18. Kc2 {[%clk 0:02:04]}  Nc6 {[%clk 0:00:53]} 19. b3 {[%clk 0:01:58]}  Nb4+ {[%clk 0:00:50]} 20. Kd2 {[%clk 0:01:52]}  O-O {[%clk 0:00:38]} 21. Bb2 {[%clk 0:01:52]}  Rfe8 {[%clk 0:00:34]} 22. g3 {[%clk 0:01:48]}  Rxa1 {[%clk 0:00:15]} 23. Bxa1 {[%clk 0:01:47]}  Nxa2 {[%clk 0:00:13]} 24. Bg2 {[%clk 0:01:46]}  Nb4 {[%clk 0:00:12]} 25. Bc3 {[%clk 0:01:46]}  Na6 {[%clk 0:00:06]} 26. d4 {[%clk 0:01:44]}  Rd8 {[%clk 0:00:04]} 27. d5 {[%clk 0:01:41]}  c6 {[%clk 0:00:03]} 28. Ke2 {[%clk 0:01:41]}  Bc5 {[%clk 0:00:01]} 29. dxc6 {[%clk 0:01:41]}  Nc7 {[%clk 0:00:01]} 30. Ba5 {[%clk 0:01:41]}  Re8+ {[%clk 0:00:01]} 31. Kd2 {[%clk 0:01:41]}  Nd5 {[%clk 0:00:00]} 32. Bxd5 {[%clk 0:01:40]} 1-0


[Site "https://www.chess.com"]

[Event "Titled Tuesday Blitz August 1 Early 2023"]
[White "Kaczur, Florian"]
[Black "Kleiman, Jake"]
[WhiteFideId "705098"]
[BlackFideId "2020041"]
[WhiteElo "2772"]
[BlackElo "2489"]
[Result "0-1"]
[Round "3"]
[TimeControl "180+1"]
[Date "2023.08.01"]
[WhiteClock "0:00:25"]
[BlackClock "0:00:30"]
[Board "93"]

1. d4 {[%clk 0:03:00]}  Nf6 {[%clk 0:03:00]} 2. Bg5 {[%clk 0:02:59]}  Ne4 {[%clk 0:02:59]} 3. Bd2 {[%clk 0:02:57]}  d5 {[%clk 0:02:55]} 4. Nc3 {[%clk 0:02:56]}  Nxd2 {[%clk 0:02:54]} 5. Qxd2 {[%clk 0:02:57]}  Bf5 {[%clk 0:02:54]} 6. Qg5 {[%clk 0:02:51]}  e6 {[%clk 0:02:45]} 7. Qxd8+ {[%clk 0:02:51]}  Kxd8 {[%clk 0:02:46]} 8. O-O-O {[%clk 0:02:47]}  Nd7 {[%clk 0:02:37]} 9. Nf3 {[%clk 0:02:44]}  c6 {[%clk 0:02:30]} 10. Ng5 {[%clk 0:02:17]}  Bg6 {[%clk 0:02:30]} 11. f4 {[%clk 0:02:16]}  Bd6 {[%clk 0:02:18]} 12. e3 {[%clk 0:02:15]}  Kc7 {[%clk 0:02:03]} 13. h4 {[%clk 0:02:11]}  h6 {[%clk 0:02:00]} 14. Nh3 {[%clk 0:02:10]}  f6 {[%clk 0:01:56]} 15. Nf2 {[%clk 0:02:07]}  e5 {[%clk 0:01:53]} 16. g3 {[%clk 0:02:07]}  Rae8 {[%clk 0:01:50]} 17. Kd2 {[%clk 0:01:55]}  exd4 {[%clk 0:01:44]} 18. exd4 {[%clk 0:01:54]}  Re7 {[%clk 0:01:45]} 19. h5 {[%clk 0:01:53]}  Bf7 {[%clk 0:01:42]} 20. Re1 {[%clk 0:01:18]}  Rxe1 {[%clk 0:01:41]} 21. Kxe1 {[%clk 0:01:19]}  Re8+ {[%clk 0:01:41]} 22. Kd2 {[%clk 0:01:20]}  b5 {[%clk 0:01:41]} 23. Bd3 {[%clk 0:01:17]}  Re7 {[%clk 0:01:34]} 24. Ng4 {[%clk 0:01:10]}  Nb6 {[%clk 0:01:27]} 25. Ne3 {[%clk 0:01:06]}  Be6 {[%clk 0:01:25]} 26. Ncd1 {[%clk 0:00:59]}  Nc4+ {[%clk 0:01:21]} 27. Bxc4 {[%clk 0:00:54]}  bxc4 {[%clk 0:01:19]} 28. Nc3 {[%clk 0:00:47]}  Re8 {[%clk 0:01:12]} 29. Rf1 {[%clk 0:00:43]}  Bb4 {[%clk 0:01:03]} 30. a3 {[%clk 0:00:41]}  Ba5 {[%clk 0:01:03]} 31. b4 {[%clk 0:00:40]}  cxb3 {[%clk 0:00:54]} 32. cxb3 {[%clk 0:00:41]}  Bh3 {[%clk 0:00:45]} 33. Re1 {[%clk 0:00:32]}  Bxc3+ {[%clk 0:00:41]} 34. Kxc3 {[%clk 0:00:31]}  Kd7 {[%clk 0:00:37]} 35. Kd3 {[%clk 0:00:25]}  Bg4 {[%clk 0:00:36]} 36. Rf1 {[%clk 0:00:21]}  Bxh5 {[%clk 0:00:35]} 37. g4 {[%clk 0:00:22]}  Bg6+ {[%clk 0:00:35]} 38. f5 {[%clk 0:00:22]}  Bf7 {[%clk 0:00:34]} 39. Rf4 {[%clk 0:00:22]}  Re4 {[%clk 0:00:31]} 40. Rxe4 {[%clk 0:00:20]}  dxe4+ {[%clk 0:00:32]} 41. Kxe4 {[%clk 0:00:19]}  Bxb3 {[%clk 0:00:32]} 42. Nf1 {[%clk 0:00:18]}  Kd6 {[%clk 0:00:31]} 43. Ng3 {[%clk 0:00:18]}  Bd5+ {[%clk 0:00:31]} 44. Ke3 {[%clk 0:00:18]}  Bf7 {[%clk 0:00:32]} 45. Ne2 {[%clk 0:00:18]}  Kd5 {[%clk 0:00:31]} 46. Kd3 {[%clk 0:00:18]}  c5 {[%clk 0:00:29]} 47. Nf4+ {[%clk 0:00:19]}  Kd6 {[%clk 0:00:30]} 48. Kc3 {[%clk 0:00:19]}  a5 {[%clk 0:00:29]} 49. Nd3 {[%clk 0:00:19]}  cxd4+ {[%clk 0:00:29]} 50. Kxd4 {[%clk 0:00:20]}  Bd5 {[%clk 0:00:28]} 51. Nf4 {[%clk 0:00:20]}  Bf3 {[%clk 0:00:28]} 52. Nh5 {[%clk 0:00:20]}  Bxg4 {[%clk 0:00:29]} 53. Nxg7 {[%clk 0:00:21]}  Ke7 {[%clk 0:00:28]} 54. Ke4 {[%clk 0:00:21]}  h5 {[%clk 0:00:27]} 55. Kf4 {[%clk 0:00:21]}  Bd1 {[%clk 0:00:27]} 56. Ne6 {[%clk 0:00:21]}  h4 {[%clk 0:00:27]} 57. Nd4 {[%clk 0:00:21]}  Kd6 {[%clk 0:00:25]} 58. Nb5+ {[%clk 0:00:18]}  Kc5 {[%clk 0:00:24]} 59. Nc3 {[%clk 0:00:17]}  Bc2 {[%clk 0:00:23]} 60. Kg4 {[%clk 0:00:17]}  Kc4 {[%clk 0:00:23]} 61. Na2 {[%clk 0:00:14]}  Kb3 {[%clk 0:00:21]} 62. Nc1+ {[%clk 0:00:13]}  Kb2 {[%clk 0:00:21]} 63. Ne2 {[%clk 0:00:11]}  Bd1 {[%clk 0:00:22]} 64. Kxh4 {[%clk 0:00:11]}  Bxe2 {[%clk 0:00:22]} 65. a4 {[%clk 0:00:12]}  Bd3 {[%clk 0:00:22]} 66. Kg3 {[%clk 0:00:13]}  Bxf5 {[%clk 0:00:22]} 67. Kf4 {[%clk 0:00:13]}  Bd7 {[%clk 0:00:23]} 68. Kg3 {[%clk 0:00:14]}  Bxa4 {[%clk 0:00:24]} 69. Kh4 {[%clk 0:00:15]}  Bc2 {[%clk 0:00:24]} 70. Kh5 {[%clk 0:00:16]}  a4 {[%clk 0:00:25]} 71. Kh6 {[%clk 0:00:17]}  a3 {[%clk 0:00:26]} 72. Kg7 {[%clk 0:00:18]}  a2 {[%clk 0:00:27]} 73. Kf8 {[%clk 0:00:19]}  a1=Q {[%clk 0:00:27]} 74. Ke7 {[%clk 0:00:20]}  f5 {[%clk 0:00:27]} 75. Kd7 {[%clk 0:00:21]}  Qa6 {[%clk 0:00:27]} 76. Kc7 {[%clk 0:00:21]}  f4 {[%clk 0:00:28]} 77. Kb8 {[%clk 0:00:21]}  f3 {[%clk 0:00:29]} 78. Kc7 {[%clk 0:00:22]}  f2 {[%clk 0:00:30]} 79. Kd7 {[%clk 0:00:23]}  f1=Q {[%clk 0:00:31]} 80. Kd8 {[%clk 0:00:24]}  Qff6+ {[%clk 0:00:30]} 81. Kc7 {[%clk 0:00:25]}  Qab6+ {[%clk 0:00:30]} 82. Kd7 {[%clk 0:00:25]}  Qfe6# {[%clk 0:00:30]} 0-1


[Site "https://www.chess.com"]

[Event "Titled Tuesday Blitz August 1 Early 2023"]
[White "Lamaze, Simon"]
[Black "Nareks, Matic"]
[WhiteFideId "36069264"]
[BlackFideId "14629526"]
[WhiteElo "2767"]
[BlackElo "2481"]
[Result "1-0"]
[Round "3"]
[TimeControl "180+1"]
[Date "2023.08.01"]
[WhiteClock "0:00:24"]
[BlackClock "0:00:17"]
[Board "95"]

1. c4 {[%clk 0:03:00]}  d6 {[%clk 0:02:59]} 2. Nf3 {[%clk 0:02:59]}  e5 {[%clk 0:02:59]} 3. d4 {[%clk 0:02:59]}  Nd7 {[%clk 0:02:59]} 4. Nc3 {[%clk 0:02:58]}  Ngf6 {[%clk 0:02:58]} 5. e4 {[%clk 0:02:59]}  g6 {[%clk 0:02:57]} 6. Be2 {[%clk 0:02:59]}  Bg7 {[%clk 0:02:57]} 7. O-O {[%clk 0:03:00]}  O-O {[%clk 0:02:58]} 8. Be3 {[%clk 0:02:59]}  Ng4 {[%clk 0:02:55]} 9. Bg5 {[%clk 0:02:58]}  f6 {[%clk 0:02:49]} 10. Bc1 {[%clk 0:02:57]}  Nh6 {[%clk 0:02:45]} 11. Re1 {[%clk 0:02:42]}  Nf7 {[%clk 0:02:45]} 12. g3 {[%clk 0:02:41]}  c6 {[%clk 0:02:42]} 13. d5 {[%clk 0:02:41]}  c5 {[%clk 0:02:40]} 14. Kh1 {[%clk 0:02:29]}  f5 {[%clk 0:02:40]} 15. exf5 {[%clk 0:02:30]}  gxf5 {[%clk 0:02:40]} 16. Nh4 {[%clk 0:02:30]}  Nf6 {[%clk 0:02:38]} 17. f4 {[%clk 0:02:28]}  e4 {[%clk 0:02:38]} 18. Be3 {[%clk 0:02:24]}  Nh6 {[%clk 0:02:22]} 19. h3 {[%clk 0:02:23]}  Kh8 {[%clk 0:02:19]} 20. Rg1 {[%clk 0:02:20]}  Rg8 {[%clk 0:02:19]} 21. Qe1 {[%clk 0:02:16]}  Bf8 {[%clk 0:02:14]} 22. Qf2 {[%clk 0:02:15]}  Be7 {[%clk 0:02:14]} 23. Rab1 {[%clk 0:01:50]}  Bd7 {[%clk 0:02:12]} 24. b4 {[%clk 0:01:48]}  b6 {[%clk 0:02:12]} 25. a4 {[%clk 0:01:44]}  Qc7 {[%clk 0:02:11]} 26. a5 {[%clk 0:01:38]}  Rg7 {[%clk 0:02:06]} 27. bxc5 {[%clk 0:01:35]}  bxc5 {[%clk 0:02:06]} 28. a6 {[%clk 0:01:36]}  Bc8 {[%clk 0:02:00]} 29. g4 {[%clk 0:01:26]}  fxg4 {[%clk 0:01:57]} 30. f5 {[%clk 0:01:26]}  g3 {[%clk 0:01:39]} 31. Qf4 {[%clk 0:01:12]}  g2+ {[%clk 0:01:36]} 32. Rxg2 {[%clk 0:01:08]}  Rxg2 {[%clk 0:01:35]} 33. Kxg2 {[%clk 0:01:08]}  Nf7 {[%clk 0:01:35]} 34. Nxe4 {[%clk 0:00:59]}  Bxa6 {[%clk 0:01:18]} 35. Nxc5 {[%clk 0:00:55]}  Rg8+ {[%clk 0:01:14]} 36. Kh2 {[%clk 0:00:52]}  Bc8 {[%clk 0:01:00]} 37. Ne6 {[%clk 0:00:51]}  Bxe6 {[%clk 0:00:59]} 38. fxe6 {[%clk 0:00:52]}  Ne5 {[%clk 0:00:58]} 39. Nf5 {[%clk 0:00:51]}  Rg6 {[%clk 0:00:49]} 40. Bd4 {[%clk 0:00:47]}  Bd8 {[%clk 0:00:43]} 41. Nxd6 {[%clk 0:00:42]}  Qxd6 {[%clk 0:00:37]} 42. Bxe5 {[%clk 0:00:42]}  Qc5 {[%clk 0:00:32]} 43. e7 {[%clk 0:00:35]}  Qxe7 {[%clk 0:00:30]} 44. Rb8 {[%clk 0:00:35]}  Kg7 {[%clk 0:00:27]} 45. Bd3 {[%clk 0:00:31]}  Rh6 {[%clk 0:00:21]} 46. Qg5+ {[%clk 0:00:30]}  Rg6 {[%clk 0:00:20]} 47. Bxg6 {[%clk 0:00:28]}  hxg6 {[%clk 0:00:21]} 48. Qxf6+ {[%clk 0:00:22]}  Qxf6 {[%clk 0:00:20]} 49. Bxf6+ {[%clk 0:00:23]}  Bxf6 {[%clk 0:00:21]} 50. Rb7+ {[%clk 0:00:23]}  Kh6 {[%clk 0:00:20]} 51. Rxa7 {[%clk 0:00:24]}  Bd4 {[%clk 0:00:20]} 52. Rb7 {[%clk 0:00:24]}  Kh5 {[%clk 0:00:19]} 53. Kg2 {[%clk 0:00:24]}  Kg5 {[%clk 0:00:17]} 54. d6 {[%clk 0:00:24]} 1-0


[Site "https://www.chess.com"]